[Event "14e Open International de Quenza"]
[Site "Quenza, France"]
[Date "????.??.??"]
[Round "7.5"]
[White "Tomasi, Albert"]
[Black "Maurizzi, Marc Andria"]
[Result "0-1"]
[TimeControl "5min+3s"]
[WhiteElo "2287"]
[BlackElo "2604"]

1. e4 {[%clk 00:05:03]} {[%emt 00:00:02]} c6 {[%clk 00:05:02]} {[%emt
00:00:05]} 2. d4 {[%clk 00:05:03]} {[%emt 00:00:02]} d5 {[%clk 00:05:02]} 3.
Nc3 {[%clk 00:05:03]} {[%emt 00:00:02]} dxe4 {[%clk 00:05:02]} 4. Nxe4 {[%clk
00:05:03]} {[%emt 00:00:02]} Nf6 {[%clk 00:05:02]} 5. Nxf6+ {[%clk 00:05:03]}
{[%emt 00:00:02]} exf6 {[%clk 00:05:02]} 6. c3 {[%clk 00:05:03]} {[%emt
00:00:02]} Bd6 {[%clk 00:05:02]} 7. Bd3 {[%clk 00:05:03]} {[%emt 00:00:01]} O-O
{[%clk 00:05:02]} 8. Qc2 {[%clk 00:05:03]} {[%emt 00:00:02]} Re8+ {[%clk
00:05:02]} {[%emt 00:00:02]} 9. Ne2 {[%clk 00:05:03]} {[%emt 00:00:01]} g6
{[%clk 00:05:02]} 10. Bh6 {[%clk 00:05:03]} {[%emt 00:00:03]} Be6 {[%clk
00:05:01]} {[%emt 00:00:04]} 11. h4 {[%clk 00:04:20]} {[%emt 00:00:46]} f5
{[%clk 00:05:01]} {[%emt 00:00:03]} 12. O-O-O {[%clk 00:04:05]} {[%emt
00:00:18]} Nd7 {[%clk 00:05:01]} {[%emt 00:00:03]} 13. Kb1 {[%clk 00:04:05]}
{[%emt 00:00:03]} Nf6 {[%clk 00:04:59]} {[%emt 00:00:04]} 14. f3 {[%clk
00:04:05]} {[%emt 00:00:03]} b5 {[%clk 00:04:53]} {[%emt 00:00:09]} 15. Nf4
{[%clk 00:03:57]} {[%emt 00:00:10]} Bc4 {[%clk 00:04:22]} {[%emt 00:00:34]} 16.
h5 {[%clk 00:03:23]} {[%emt 00:00:38]} Qa5 {[%clk 00:04:13]} {[%emt 00:00:12]}
17. a3 {[%clk 00:03:20]} {[%emt 00:00:05]} Qc7 {[%clk 00:04:05]} {[%emt
00:00:11]} 18. g3 {[%clk 00:03:11]} {[%emt 00:00:12]} Bxd3 {[%clk 00:03:18]}
{[%emt 00:00:51]} 19. Rxd3 {[%clk 00:03:10]} {[%emt 00:00:04]} a5 {[%clk
00:03:14]} {[%emt 00:00:07]} 20. Bg5 {[%clk 00:03:08]} {[%emt 00:00:04]} Nd5
{[%clk 00:03:14]} {[%emt 00:00:01]} 21. Nxd5 {[%clk 00:02:06]} {[%emt
00:01:05]} cxd5 {[%clk 00:03:14]} 22. f4 {[%clk 00:01:19]} {[%emt 00:00:49]}
Re4 {[%clk 00:02:40]} {[%emt 00:00:38]} 23. Bf6 {[%clk 00:00:30]} {[%emt
00:00:52]} Qc4 {[%clk 00:02:23]} {[%emt 00:00:20]} 24. b3 {[%clk 00:00:06]}
{[%emt 00:00:27]} Qc7 {[%clk 00:02:23]} {[%emt 00:00:01]} 25. Rd2 {[%clk
00:00:06]} {[%emt 00:00:03]} Rae8 {[%clk 00:01:41]} {[%emt 00:00:45]} 26. Be5
{[%clk 00:00:06]} f6 {[%clk 00:01:41]} 27. Bxf6 {[%clk 00:00:06]} {[%emt
00:00:01]} Re1+ {[%clk 00:01:41]} {[%emt 00:00:03]} 28. Rxe1 {[%clk 00:00:06]}
{[%emt 00:00:01]} Rxe1+ {[%clk 00:01:41]} 29. Kb2 {[%clk 00:00:06]} a4 {[%clk
00:01:15]} {[%emt 00:00:29]} 30. Be5 {[%clk 00:00:06]} {[%emt 00:00:01]} Qc6
{[%clk 00:01:12]} {[%emt 00:00:06]} 31. hxg6 {[%clk 00:00:06]} {[%emt
00:00:02]} hxg6 {[%clk 00:01:12]} 32. g4 {[%clk 00:00:06]} Bxe5 {[%clk
00:01:08]} {[%emt 00:00:07]} 33. fxe5 {[%clk 00:00:06]} axb3 {[%clk 00:01:07]}
{[%emt 00:00:04]} 34. Qxb3 {[%clk 00:00:06]} fxg4 {[%clk 00:01:07]} 35. Rg2
{[%clk 00:00:06]} Qd7 {[%clk 00:01:00]} {[%emt 00:00:10]} 36. a4 {[%clk
00:00:05]} {[%emt 00:00:04]} Qf5 {[%clk 00:00:57]} {[%emt 00:00:06]} 37. Qxd5+
{[%clk 00:00:05]} {[%emt 00:00:03]} Kg7 {[%clk 00:00:56]} {[%emt 00:00:04]} 38.
Qb7+ {[%clk 00:00:05]} {[%emt 00:00:02]} Kf8 {[%clk 00:00:54]} {[%emt
00:00:05]} 39. Qb8+ {[%clk 00:00:05]} {[%emt 00:00:01]} Ke7 {[%clk 00:00:54]}
40. Qd6+ {[%clk 00:00:05]} {[%emt 00:00:01]} Kf7 {[%clk 00:00:54]} 41. Qf6+
{[%clk 00:00:05]} {[%emt 00:00:02]} Qxf6 {[%clk 00:00:54]} {[%emt 00:00:01]} 42.
exf6 {[%clk 00:00:05]} bxa4 {[%clk 00:00:54]} {[%emt 00:00:01]} 43. Rxg4 {[%clk
00:00:05]} Kxf6 {[%clk 00:00:54]} {[%emt 00:00:04]} 44. d5 {[%clk 00:00:05]}
{[%emt 00:00:01]} Re5 {[%clk 00:00:54]} {[%emt 00:00:01]} 45. Rd4 {[%clk
00:00:05]} {[%emt 00:00:01]} Ke7 {[%clk 00:00:54]} {[%emt 00:00:01]} 46. Ka3
{[%emt 00:00:02]} Kd6 47. c4 {[%clk 00:00:05]} Kc5 {[%clk 00:00:54]} {[%emt
00:00:01]} 48. Rd1 {[%clk 00:00:04]} {[%emt 00:00:04]} Kxc4 {[%clk 00:00:54]}
{[%emt 00:00:04]} 49. d6 {[%clk 00:00:04]} Re8 {[%clk 00:00:54]} 50. d7 Rd8 51.
Rc1+ {[%clk 00:00:04]} {[%emt 00:00:04]} Kd5 {[%clk 00:00:54]} {[%emt
00:00:02]} 52. Rd1+ {[%clk 00:00:04]} {[%emt 00:00:02]} Ke6 {[%clk 00:00:54]}
53. Kxa4 {[%clk 00:00:04]} {[%emt 00:00:02]} Rxd7 {[%clk 00:00:54]} 54. Re1+
{[%clk 00:00:04]} Kf6 {[%clk 00:00:54]} {[%emt 00:00:02]} 55. Rf1+ {[%clk
00:00:04]} Kg7 {[%clk 00:00:54]} 56. Kb5 {[%clk 00:00:04]} g5 {[%clk 00:00:54]}
57. Kc6 {[%clk 00:00:04]} Rd2 {[%clk 00:00:54]} {[%emt 00:00:01]} 58. Kc5
{[%clk 00:00:04]} {[%emt 00:00:01]} Kg6 {[%clk 00:00:54]} 59. Kc4 {[%clk
00:00:04]} g4 {[%clk 00:00:54]} 60. Kc3 {[%clk 00:00:04]} Rd8 {[%clk 00:00:54]}
61. Rf4 {[%clk 00:00:04]} {[%emt 00:00:03]} Kg5 {[%clk 00:00:54]} 62. Rf7
{[%clk 00:00:04]} g3 {[%clk 00:00:54]} {[%emt 00:00:01]} 0-1

[Event "14e Open International de Quenza"]
[Site "Quenza, France"]
[Date "????.??.??"]
[Round "7.6"]
[White "Terrieux, Kevin"]
[Black "Skripchenko, Almira"]
[Result "1-0"]
[TimeControl "5min+3s"]
[WhiteElo "2394"]
[BlackElo "2359"]

1. e4 {[%clk 00:05:03]} {[%emt 00:00:01]} d5 {[%clk 00:05:03]} {[%emt
00:00:01]} 2. exd5 {[%clk 00:05:03]} {[%emt 00:00:02]} Qxd5 {[%clk 00:05:03]}
{[%emt 00:00:02]} 3. Nc3 {[%clk 00:05:03]} {[%emt 00:00:01]} Qd8 {[%clk
00:05:03]} {[%emt 00:00:01]} 4. d4 {[%clk 00:05:03]} {[%emt 00:00:02]} Nf6
{[%clk 00:05:03]} {[%emt 00:00:01]} 5. Nf3 {[%clk 00:05:03]} {[%emt 00:00:02]}
Bf5 {[%clk 00:04:59]} {[%emt 00:00:07]} 6. Ne5 {[%clk 00:04:57]} {[%emt
00:00:09]} c6 {[%clk 00:04:58]} {[%emt 00:00:04]} 7. Bc4 {[%clk 00:04:56]}
{[%emt 00:00:04]} e6 {[%clk 00:04:58]} {[%emt 00:00:01]} 8. g4 {[%clk
00:04:56]} {[%emt 00:00:03]} Be4 {[%clk 00:04:25]} {[%emt 00:00:36]} 9. Nxe4
{[%clk 00:04:32]} {[%emt 00:00:27]} Nxe4 {[%clk 00:04:25]} {[%emt 00:00:01]} 10.
Qf3 {[%clk 00:03:51]} {[%emt 00:00:44]} Nd6 {[%clk 00:04:25]} {[%emt 00:00:02]}
11. Be3 {[%clk 00:03:15]} {[%emt 00:00:40]} Nd7 {[%clk 00:04:20]} {[%emt
00:00:08]} 12. O-O-O {[%clk 00:03:05]} {[%emt 00:00:13]} Be7 {[%clk 00:03:09]}
{[%emt 00:01:14]} 13. Bb3 {[%clk 00:02:53]} {[%emt 00:00:15]} a5 {[%clk
00:03:05]} {[%emt 00:00:07]} 14. a3 {[%clk 00:02:53]} {[%emt 00:00:02]} a4
{[%clk 00:02:26]} {[%emt 00:00:42]} 15. Ba2 {[%clk 00:02:53]} {[%emt 00:00:01]}
O-O {[%clk 00:02:20]} {[%emt 00:00:09]} 16. h4 {[%clk 00:02:53]} {[%emt
00:00:03]} Nb5 {[%clk 00:02:06]} {[%emt 00:00:17]} 17. Bf4 {[%clk 00:02:38]}
{[%emt 00:00:18]} Nxe5 {[%clk 00:02:05]} {[%emt 00:00:05]} 18. Bxe5 {[%clk
00:02:29]} {[%emt 00:00:12]} Nd6 {[%clk 00:01:58]} {[%emt 00:00:10]} 19. h5
{[%clk 00:02:15]} {[%emt 00:00:17]} h6 {[%clk 00:01:57]} {[%emt 00:00:03]} 20.
Kb1 {[%clk 00:02:11]} {[%emt 00:00:08]} Qd7 {[%clk 00:01:57]} {[%emt 00:00:04]}
21. Qg2 {[%clk 00:02:02]} {[%emt 00:00:11]} b5 {[%clk 00:01:57]} {[%emt
00:00:02]} 22. g5 {[%clk 00:02:00]} {[%emt 00:00:05]} hxg5 {[%clk 00:01:24]}
{[%emt 00:00:36]} 23. h6 {[%clk 00:02:00]} {[%emt 00:00:03]} f6 {[%clk
00:01:24]} {[%emt 00:00:01]} 24. Qh3 {[%clk 00:01:46]} {[%emt 00:00:16]} Kf7
{[%clk 00:01:24]} 25. hxg7 {[%clk 00:01:45]} {[%emt 00:00:05]} Rg8 {[%clk
00:01:01]} {[%emt 00:00:26]} 26. Qh5+ {[%clk 00:01:06]} {[%emt 00:00:42]} Kxg7
{[%clk 00:01:01]} {[%emt 00:00:02]} 27. Qxg5+ {[%clk 00:01:01]} {[%emt
00:00:07]} Kf8 {[%clk 00:00:59]} {[%emt 00:00:05]} 28. Qh6+ {[%clk 00:00:57]}
{[%emt 00:00:08]} Ke8 {[%clk 00:00:55]} {[%emt 00:00:06]} 29. Bxd6 {[%clk
00:00:42]} {[%emt 00:00:18]} Qxd6 {[%clk 00:00:48]} {[%emt 00:00:11]} 30. Rde1
{[%clk 00:00:42]} {[%emt 00:00:02]} Qxd4 {[%clk 00:00:19]} {[%emt 00:00:32]} 31.
Bxe6 {[%clk 00:00:32]} {[%emt 00:00:13]} Rg5 {[%clk 00:00:08]} {[%emt
00:00:15]} 32. Qh7 {[%clk 00:00:22]} {[%emt 00:00:12]} Qc5 {[%clk 00:00:06]}
{[%emt 00:00:05]} 33. Rd1 {[%clk 00:00:19]} {[%emt 00:00:06]} Rd8 {[%clk
00:00:04]} {[%emt 00:00:05]} 34. Qf7# {[%emt 00:00:01]} 1-0

[Event "14e Open International de Quenza"]
[Site "Quenza, France"]
[Date "????.??.??"]
[Round "7.7"]
[White "Pieri, Pierre-Louis"]
[Black "Mullon, Jean-Baptiste"]
[Result "1-0"]
[TimeControl "5min+3s"]
[WhiteElo "2224"]
[BlackElo "2277"]

1. e4 {[%clk 00:05:03]} {[%emt 00:00:01]} c5 {[%clk 00:05:03]} {[%emt
00:00:01]} 2. Nc3 {[%clk 00:05:03]} {[%emt 00:00:03]} a6 {[%clk 00:04:58]}
{[%emt 00:00:09]} 3. Nge2 {[%clk 00:04:59]} {[%emt 00:00:07]} e6 {[%clk
00:04:58]} {[%emt 00:00:03]} 4. g3 {[%clk 00:04:59]} {[%emt 00:00:02]} b5
{[%clk 00:04:44]} {[%emt 00:00:17]} 5. Bg2 {[%clk 00:04:59]} {[%emt 00:00:01]}
Bb7 {[%clk 00:04:44]} {[%emt 00:00:01]} 6. d4 {[%clk 00:04:59]} {[%emt
00:00:01]} cxd4 {[%clk 00:04:44]} {[%emt 00:00:02]} 7. Nxd4 {[%clk 00:04:59]}
{[%emt 00:00:01]} Qc7 {[%clk 00:04:39]} {[%emt 00:00:08]} 8. O-O {[%clk
00:04:52]} {[%emt 00:00:10]} Nf6 {[%clk 00:04:24]} {[%emt 00:00:18]} 9. Re1
{[%clk 00:04:51]} {[%emt 00:00:04]} d6 {[%clk 00:04:11]} {[%emt 00:00:17]} 10.
Bg5 {[%clk 00:03:51]} {[%emt 00:01:03]} Be7 {[%clk 00:04:07]} {[%emt 00:00:08]}
11. Bxf6 {[%clk 00:03:39]} {[%emt 00:00:15]} gxf6 {[%clk 00:04:07]} {[%emt
00:00:01]} 12. Qh5 {[%clk 00:03:32]} {[%emt 00:00:09]} O-O {[%clk 00:03:29]}
{[%emt 00:00:41]} 13. Rad1 {[%clk 00:03:09]} {[%emt 00:00:26]} Qc5 {[%clk
00:03:18]} {[%emt 00:00:14]} 14. Nd5 {[%clk 00:03:00]} {[%emt 00:00:12]} Bxd5
{[%clk 00:01:50]} {[%emt 00:01:32]} 15. exd5 {[%emt 00:00:02]} Ra7 16. Be4
{[%clk 00:02:15]} {[%emt 00:00:47]} Rc8 {[%clk 00:00:26]} {[%emt 00:01:27]} 17.
Qxh7+ {[%clk 00:02:14]} {[%emt 00:00:04]} 1-0

[Event "14e Open International de Quenza"]
[Site "Quenza, France"]
[Date "????.??.??"]
[Round "7.8"]
[White "Podvin, Antoine"]
[Black "Bonelli Maestracci, Pierre Joseph"]
[Result "1/2-1/2"]
[TimeControl "5min+3s"]
[WhiteElo "2037"]
[BlackElo "2098"]

1. d4 {[%clk 00:05:03]} {[%emt 00:00:01]} c5 {[%clk 00:05:03]} 2. d5 {[%clk
00:05:03]} {[%emt 00:00:02]} Nf6 {[%clk 00:05:03]} {[%emt 00:00:03]} 3. c4
{[%clk 00:05:03]} e6 {[%clk 00:05:03]} {[%emt 00:00:04]} 4. Nc3 {[%clk
00:05:03]} {[%emt 00:00:02]} d6 {[%clk 00:05:02]} {[%emt 00:00:04]} 5. e4
{[%clk 00:05:03]} {[%emt 00:00:01]} g6 {[%clk 00:05:00]} {[%emt 00:00:05]} 6.
Bd3 {[%clk 00:05:03]} {[%emt 00:00:02]} Bg7 {[%clk 00:05:00]} 7. Nge2 {[%clk
00:05:00]} {[%emt 00:00:07]} e5 {[%clk 00:04:50]} {[%emt 00:00:14]} 8. O-O
{[%clk 00:05:00]} {[%emt 00:00:03]} O-O {[%clk 00:04:50]} {[%emt 00:00:02]} 9.
f4 {[%clk 00:04:50]} {[%emt 00:00:13]} exf4 {[%clk 00:04:50]} {[%emt 00:00:02]}
10. Bxf4 {[%clk 00:04:44]} {[%emt 00:00:08]} Nh5 {[%clk 00:04:50]} 11. Be3
{[%clk 00:04:38]} {[%emt 00:00:10]} a6 {[%clk 00:04:50]} {[%emt 00:00:02]} 12.
a4 {[%clk 00:04:38]} {[%emt 00:00:01]} Nd7 {[%clk 00:04:50]} {[%emt 00:00:02]}
13. Nf4 {[%clk 00:04:21]} {[%emt 00:00:19]} Nxf4 {[%clk 00:04:41]} {[%emt
00:00:12]} 14. Bxf4 {[%clk 00:04:20]} {[%emt 00:00:03]} Ne5 {[%clk 00:04:41]}
{[%emt 00:00:03]} 15. Qd2 {[%clk 00:04:09]} {[%emt 00:00:14]} Bd7 {[%clk
00:04:37]} {[%emt 00:00:07]} 16. Rae1 {[%clk 00:03:58]} {[%emt 00:00:13]} Qe7
{[%clk 00:04:29]} {[%emt 00:00:11]} 17. b3 {[%clk 00:03:52]} {[%emt 00:00:10]}
Rae8 {[%clk 00:03:59]} {[%emt 00:00:33]} 18. Bc2 {[%clk 00:03:38]} {[%emt
00:00:16]} Rb8 {[%clk 00:03:51]} {[%emt 00:00:11]} 19. Bh6 {[%clk 00:03:38]}
{[%emt 00:00:02]} Ng4 {[%clk 00:03:31]} {[%emt 00:00:24]} 20. Bxg7 {[%clk
00:03:36]} {[%emt 00:00:05]} Kxg7 {[%clk 00:03:31]} {[%emt 00:00:01]} 21. h3
{[%clk 00:03:16]} {[%emt 00:00:23]} Ne5 {[%clk 00:03:31]} {[%emt 00:00:01]} 22.
a5 {[%clk 00:03:14]} {[%emt 00:00:04]} Qd8 {[%clk 00:03:21]} {[%emt 00:00:13]}
23. Ne2 {[%clk 00:03:14]} {[%emt 00:00:02]} Qe7 {[%clk 00:02:43]} {[%emt
00:00:41]} 24. Nf4 {[%clk 00:02:48]} {[%emt 00:00:29]} h6 {[%clk 00:02:23]}
{[%emt 00:00:23]} 25. Re3 {[%clk 00:02:46]} {[%emt 00:00:05]} Rbe8 {[%clk
00:02:12]} {[%emt 00:00:14]} 26. Rg3 {[%clk 00:02:35]} {[%emt 00:00:13]} Qh4
{[%clk 00:01:58]} {[%emt 00:00:17]} 27. Qf2 {[%clk 00:02:35]} {[%emt 00:00:02]}
Kh7 {[%clk 00:01:32]} {[%emt 00:00:29]} 28. Ne2 {[%clk 00:01:54]} {[%emt
00:00:44]} f5 {[%clk 00:01:08]} {[%emt 00:00:28]} 29. exf5 {[%clk 00:01:15]}
Bxf5 {[%clk 00:01:08]} 30. Bxf5 {[%clk 00:00:31]} {[%emt 00:00:47]} Rxf5 {[%clk
00:01:08]} 31. Qe1 {[%clk 00:00:31]} {[%emt 00:00:03]} Ref8 {[%clk 00:00:49]}
{[%emt 00:00:22]} 32. Rxf5 {[%clk 00:00:31]} {[%emt 00:00:03]} Rxf5 {[%clk
00:00:49]} {[%emt 00:00:01]} 33. Qc3 {[%clk 00:00:26]} {[%emt 00:00:07]} Qf6
{[%clk 00:00:38]} {[%emt 00:00:15]} 34. Qe3 {[%clk 00:00:22]} {[%emt 00:00:07]}
Rf1+ {[%clk 00:00:29]} {[%emt 00:00:12]} 35. Kh2 {[%clk 00:00:22]} Qf2 {[%clk
00:00:29]} {[%emt 00:00:04]} 36. Qxf2 {[%clk 00:00:18]} {[%emt 00:00:08]} Rxf2
{[%clk 00:00:29]} {[%emt 00:00:01]} 37. Nc3 {[%clk 00:00:15]} {[%emt 00:00:04]}
Kg7 {[%clk 00:00:25]} {[%emt 00:00:08]} 38. Ne4 {[%clk 00:00:15]} {[%emt
00:00:01]} Rf6 {[%clk 00:00:14]} {[%emt 00:00:14]} 39. Nxf6 {[%clk 00:00:15]}
{[%emt 00:00:02]} Kxf6 {[%clk 00:00:14]} 40. Re3 {[%clk 00:00:15]} {[%emt
00:00:02]} Kf5 {[%clk 00:00:14]} {[%emt 00:00:01]} 41. Kg3 {[%clk 00:00:15]}
{[%emt 00:00:03]} g5 {[%clk 00:00:14]} {[%emt 00:00:03]} 42. Kf2 {[%clk
00:00:13]} {[%emt 00:00:04]} h5 {[%clk 00:00:14]} {[%emt 00:00:02]} 43. g3
{[%clk 00:00:13]} {[%emt 00:00:01]} g4 {[%clk 00:00:13]} {[%emt 00:00:03]} 44.
hxg4+ {[%clk 00:00:13]} {[%emt 00:00:03]} Nxg4+ {[%clk 00:00:13]} 45. Ke2
{[%clk 00:00:13]} {[%emt 00:00:03]} Nxe3 {[%clk 00:00:13]} {[%emt 00:00:03]} 46.
Kxe3 {[%clk 00:00:13]} {[%emt 00:00:01]} Kg4 {[%clk 00:00:09]} {[%emt
00:00:06]} 47. Kf2 {[%clk 00:00:13]} h4 {[%clk 00:00:09]} {[%emt 00:00:03]} 48.
gxh4 {[%clk 00:00:13]} {[%emt 00:00:01]} Kxh4 {[%clk 00:00:09]} {[%emt
00:00:01]} 49. Kf3 {[%clk 00:00:13]} {[%emt 00:00:02]} Kg5 {[%clk 00:00:09]} 50.
Ke4 {[%clk 00:00:13]} {[%emt 00:00:02]} Kg4 {[%clk 00:00:09]} {[%emt 00:00:02]}
51. Ke3 {[%clk 00:00:13]} {[%emt 00:00:03]} Kg5 {[%clk 00:00:09]} {[%emt
00:00:04]} 52. Ke4 {[%clk 00:00:13]} {[%emt 00:00:02]} Kg4 {[%clk 00:00:09]} 53.
Ke3 {[%clk 00:00:13]} {[%emt 00:00:01]} Kf5 {[%clk 00:00:08]} {[%emt 00:00:04]}
54. Kf3 {[%clk 00:00:13]} Ke5 {[%clk 00:00:08]} {[%emt 00:00:01]} 55. Ke3
{[%clk 00:00:13]} Kf5 {[%clk 00:00:08]} {[%emt 00:00:02]} 56. Kf3 {[%clk
00:00:13]} Ke5 {[%clk 00:00:08]} {[%emt 00:00:01]} 57. Ke3 {[%clk 00:00:13]}
Kf5 {[%clk 00:00:08]} {[%emt 00:00:01]} 58. Kf3 {[%clk 00:00:11]} {[%emt
00:00:04]} Ke5 {[%clk 00:00:08]} {[%emt 00:00:03]} 1/2-1/2

[Event "14e Open International de Quenza"]
[Site "Quenza, France"]
[Date "????.??.??"]
[Round "7.9"]
[White "Bernardi, Alexandre"]
[Black "Roux, Baptiste"]
[Result "0-1"]
[TimeControl "5min+3s"]
[WhiteElo "1897"]
[BlackElo "2381"]

1. e4 {[%clk 00:05:03]} {[%emt 00:00:02]} c5 {[%clk 00:05:03]} {[%emt
00:00:02]} 2. Nf3 {[%clk 00:05:03]} {[%emt 00:00:01]} Nc6 {[%clk 00:05:03]} 3.
d4 {[%clk 00:05:03]} {[%emt 00:00:01]} cxd4 {[%clk 00:05:03]} {[%emt 00:00:01]}
4. Nxd4 {[%clk 00:05:03]} Nf6 {[%clk 00:05:03]} {[%emt 00:00:01]} 5. Nc3 {[%clk
00:05:03]} {[%emt 00:00:01]} e6 {[%clk 00:04:59]} {[%emt 00:00:07]} 6. g3
{[%clk 00:05:01]} {[%emt 00:00:06]} d5 {[%clk 00:04:59]} {[%emt 00:00:02]} 7.
exd5 {[%clk 00:04:10]} {[%emt 00:00:54]} exd5 {[%clk 00:04:59]} {[%emt
00:00:02]} 8. Bg2 {[%clk 00:04:04]} {[%emt 00:00:09]} Bg4 {[%clk 00:04:54]}
{[%emt 00:00:08]} 9. Nf3 {[%clk 00:03:31]} {[%emt 00:00:36]} d4 {[%clk
00:04:40]} {[%emt 00:00:18]} 10. Ne2 {[%clk 00:03:28]} {[%emt 00:00:06]} Bc5
{[%clk 00:04:13]} {[%emt 00:00:30]} 11. O-O {[%clk 00:03:19]} {[%emt 00:00:12]}
O-O {[%clk 00:04:13]} {[%emt 00:00:02]} 12. h3 {[%clk 00:03:19]} {[%emt
00:00:02]} Bf5 {[%clk 00:04:04]} {[%emt 00:00:12]} 13. Bg5 {[%clk 00:02:59]}
{[%emt 00:00:22]} h6 {[%clk 00:04:03]} {[%emt 00:00:04]} 14. Bf4 {[%clk
00:02:50]} {[%emt 00:00:12]} Qb6 {[%clk 00:03:50]} {[%emt 00:00:16]} 15. Ne5
{[%clk 00:02:13]} {[%emt 00:00:39]} Qxb2 {[%clk 00:03:17]} {[%emt 00:00:36]} 16.
Rb1 {[%clk 00:02:01]} {[%emt 00:00:16]} Qxc2 {[%clk 00:02:24]} {[%emt
00:00:56]} 17. Qxc2 {[%clk 00:01:15]} {[%emt 00:00:50]} Bxc2 {[%clk 00:02:24]}
{[%emt 00:00:02]} 18. Rxb7 {[%clk 00:01:15]} {[%emt 00:00:01]} Nxe5 {[%clk
00:02:22]} {[%emt 00:00:04]} 19. Bxe5 {[%clk 00:01:15]} {[%emt 00:00:01]} d3
{[%clk 00:02:08]} {[%emt 00:00:18]} 20. Nf4 {[%clk 00:00:38]} {[%emt 00:00:39]}
Rac8 {[%clk 00:01:59]} {[%emt 00:00:12]} 21. Bxf6 {[%clk 00:00:09]} {[%emt
00:00:32]} gxf6 {[%clk 00:01:59]} 22. Nd5 {[%clk 00:00:09]} Kg7 {[%clk
00:01:57]} {[%emt 00:00:07]} 23. Be4 {[%clk 00:00:04]} {[%emt 00:00:08]} Rfe8
{[%clk 00:01:47]} {[%emt 00:00:13]} 24. Bf5 {[%clk 00:00:04]} Rcd8 {[%clk
00:01:47]} {[%emt 00:00:03]} 25. Nf4 {[%clk 00:00:04]} {[%emt 00:00:03]} Re7
{[%clk 00:01:47]} {[%emt 00:00:03]} 26. Rxe7 {[%clk 00:00:04]} {[%emt
00:00:03]} Bxe7 {[%clk 00:01:47]} {[%emt 00:00:01]} 27. Nh5+ {[%clk 00:00:04]}
Kf8 {[%clk 00:01:47]} {[%emt 00:00:02]} 28. Nf4 {[%clk 00:00:04]} {[%emt
00:00:02]} Bc5 {[%clk 00:01:36]} {[%emt 00:00:14]} 29. g4 {[%clk 00:00:04]}
{[%emt 00:00:02]} Rd4 {[%clk 00:01:34]} {[%emt 00:00:04]} 30. Ng2 {[%clk
00:00:04]} {[%emt 00:00:02]} Ba4 {[%clk 00:01:32]} {[%emt 00:00:05]} 31. Ne3
{[%clk 00:00:04]} {[%emt 00:00:02]} d2 {[%clk 00:01:31]} {[%emt 00:00:04]} 32.
Nc2 {[%clk 00:00:04]} {[%emt 00:00:02]} d1=Q {[%clk 00:01:26]} {[%emt
00:00:07]} 33. Nxd4 {[%emt 00:00:03]} Qxd4 {[%clk 00:01:26]} {[%emt 00:00:02]}
0-1